[Event "Betsys MČR v online bleskovém šachu 2021"]
[Site "Chess.com"]
[Date "2021.04.17"]
[Round "7"]
[White "pedroholly22"]
[Black "Rozmetal"]
[Result "1-0"]
[WhiteElo "2394"]
[BlackElo "2146"]
[TimeControl "180+1"]
[EndTime "10:12:55 PDT"]
[Termination "Uživatel pedroholly22 zvítězil na čas"]

1. e4 {[%clk 0:03:00.9]} 1... c5 {[%clk 0:02:59.6]} 2. Nf3 {[%clk 0:02:59.1]}
2... d6 {[%clk 0:02:59.1]} 3. d4 {[%clk 0:02:58.4]} 3... cxd4 {[%clk 0:02:59.1]}
4. Qxd4 {[%clk 0:02:58.3]} 4... Nf6 {[%clk 0:02:57.6]} 5. Nc3 {[%clk 0:02:28.6]}
5... e6 {[%clk 0:02:51.9]} 6. Bg5 {[%clk 0:02:26.3]} 6... Be7 {[%clk 0:02:51.1]}
7. O-O-O {[%clk 0:02:25.5]} 7... O-O {[%clk 0:02:50.5]} 8. Rg1 {[%clk
0:02:22.6]} 8... Nc6 {[%clk 0:02:49.5]} 9. Qd2 {[%clk 0:02:22]} 9... a6 {[%clk
0:02:45.1]} 10. Bd3 {[%clk 0:02:14.6]} 10... b5 {[%clk 0:02:43.5]} 11. g4 {[%clk
0:02:14.2]} 11... Bb7 {[%clk 0:02:42.4]} 12. h4 {[%clk 0:02:10.8]} 12... b4
{[%clk 0:02:33.2]} 13. Ne2 {[%clk 0:02:09.6]} 13... a5 {[%clk 0:02:33.3]} 14. h5
{[%clk 0:02:07.1]} 14... a4 {[%clk 0:02:28.4]} 15. Kb1 {[%clk 0:02:03.8]} 15...
b3 {[%clk 0:02:25.7]} 16. cxb3 {[%clk 0:01:51.1]} 16... axb3 {[%clk 0:02:24.9]}
17. a3 {[%clk 0:01:51.5]} 17... d5 {[%clk 0:02:23.5]} 18. e5 {[%clk 0:01:39.7]}
18... Nd7 {[%clk 0:02:20.6]} 19. h6 {[%clk 0:01:13.2]} 19... g6 {[%clk
0:02:16.7]} 20. Bxe7 {[%clk 0:01:07.1]} 20... Qxe7 {[%clk 0:02:15.9]} 21. Ned4
{[%clk 0:01:01.1]} 21... Ncxe5 {[%clk 0:02:10.3]} 22. Nxe5 {[%clk 0:01:00.5]}
22... Nxe5 {[%clk 0:02:09.7]} 23. Rde1 {[%clk 0:00:57]} 23... Nc4 {[%clk
0:01:46]} 24. Bxc4 {[%clk 0:00:51.5]} 24... dxc4 {[%clk 0:01:46]} 25. Nf5 {[%clk
0:00:36.7]} 25... Qf6 {[%clk 0:01:30.6]} 26. Qd4 {[%clk 0:00:25.3]} 26... Qxd4
{[%clk 0:01:25.8]} 27. Nxd4 {[%clk 0:00:25.1]} 27... Rfd8 {[%clk 0:01:25]} 28.
Nb5 {[%clk 0:00:25]} 28... Rd2 {[%clk 0:01:13.8]} 29. f4 {[%clk 0:00:24.9]}
29... Rad8 {[%clk 0:01:09.2]} 30. Nc3 {[%clk 0:00:20.3]} 30... Kf8 {[%clk
0:00:54.9]} 31. f5 {[%clk 0:00:13.1]} 31... exf5 {[%clk 0:00:43.3]} 32. gxf5
{[%clk 0:00:14]} 32... Rf2 {[%clk 0:00:39.5]} 33. fxg6 {[%clk 0:00:13.9]} 33...
fxg6 {[%clk 0:00:34.9]} 34. Rd1 {[%clk 0:00:13.6]} 34... Rdd2 {[%clk 0:00:33.4]}
35. Rxd2 {[%clk 0:00:13.3]} 35... Rxd2 {[%clk 0:00:32.6]} 36. Rf1+ {[%clk
0:00:13.8]} 36... Ke7 {[%clk 0:00:31.5]} 37. a4 {[%clk 0:00:10.9]} 37... Rh2
{[%clk 0:00:30.5]} 38. a5 {[%clk 0:00:10.7]} 38... Rxh6 {[%clk 0:00:28.2]} 39.
Kc1 {[%clk 0:00:10.5]} 39... Rh5 {[%clk 0:00:25.2]} 40. Rf4 {[%clk 0:00:08.9]}
40... Rxa5 {[%clk 0:00:22]} 41. Rxc4 {[%clk 0:00:09.5]} 41... Kf6 {[%clk
0:00:19.2]} 42. Rb4 {[%clk 0:00:09.2]} 42... Bc6 {[%clk 0:00:17.8]} 43. Rxb3
{[%clk 0:00:09.3]} 43... h5 {[%clk 0:00:18.2]} 44. Rb6 {[%clk 0:00:08.8]} 44...
Rc5 {[%clk 0:00:17]} 45. Kd2 {[%clk 0:00:09.3]} 45... h4 {[%clk 0:00:17.1]} 46.
Ne4+ {[%clk 0:00:09.2]} 46... Kf5 {[%clk 0:00:11.3]} 47. Nxc5 {[%clk 0:00:09.4]}
47... Bd5 {[%clk 0:00:12.2]} 48. Nd3 {[%clk 0:00:07.5]} 48... g5 {[%clk
0:00:11.8]} 49. Rb5 {[%clk 0:00:07.3]} 49... Ke4 {[%clk 0:00:11.1]} 50. Nf2+
{[%clk 0:00:07.3]} 50... Kd4 {[%clk 0:00:11.1]} 51. Rb4+ {[%clk 0:00:06.4]}
51... Ke5 {[%clk 0:00:10.4]} 52. Ke3 {[%clk 0:00:05.9]} 52... Be6 {[%clk
0:00:08.4]} 53. Nd3+ {[%clk 0:00:04.3]} 53... Kf6 {[%clk 0:00:07.8]} 54. Nf2
{[%clk 0:00:03.9]} 54... h3 {[%clk 0:00:06.3]} 55. Kf3 {[%clk 0:00:03.4]} 1-0

[Event "Betsys MČR v online bleskovém šachu 2021"]
[Site "Chess.com"]
[Date "2021.04.17"]
[Round "7"]
[White "martin1804"]
[Black "FaceOfLightning"]
[Result "1-0"]
[WhiteElo "2257"]
[BlackElo "1986"]
[TimeControl "180+1"]
[EndTime "10:12:55 PDT"]
[Termination "Uživatel martin1804 zvítězil na čas"]

1. d4 {[%clk 0:02:59.2]} 1... Nf6 {[%clk 0:02:57.7]} 2. Nf3 {[%clk 0:02:59.3]}
2... e6 {[%clk 0:02:54.6]} 3. Bf4 {[%clk 0:02:58.7]} 3... d6 {[%clk 0:02:48.5]}
4. e3 {[%clk 0:02:56.6]} 4... Be7 {[%clk 0:02:47.8]} 5. h3 {[%clk 0:02:56.1]}
5... Nbd7 {[%clk 0:02:47.1]} 6. Be2 {[%clk 0:02:55.9]} 6... O-O {[%clk
0:02:46.7]} 7. O-O {[%clk 0:02:55.9]} 7... Re8 {[%clk 0:02:46.2]} 8. c3 {[%clk
0:02:54.8]} 8... Bf8 {[%clk 0:02:45.8]} 9. Bh2 {[%clk 0:02:48.2]} 9... b6 {[%clk
0:02:41.8]} 10. a4 {[%clk 0:02:47.9]} 10... a6 {[%clk 0:02:39.9]} 11. Na3 {[%clk
0:02:35.3]} 11... Bb7 {[%clk 0:02:38.8]} 12. Rc1 {[%clk 0:02:25.2]} 12... e5
{[%clk 0:02:37.5]} 13. Nc4 {[%clk 0:02:19.6]} 13... e4 {[%clk 0:02:34.5]} 14.
Nfd2 {[%clk 0:02:19.1]} 14... d5 {[%clk 0:02:20]} 15. Na3 {[%clk 0:02:18.6]}
15... Bxa3 {[%clk 0:02:13]} 16. bxa3 {[%clk 0:02:19.5]} 16... Qe7 {[%clk
0:02:12.7]} 17. Qb3 {[%clk 0:02:13.1]} 17... Rac8 {[%clk 0:02:09.6]} 18. c4
{[%clk 0:02:12.8]} 18... c5 {[%clk 0:01:59.8]} 19. a5 {[%clk 0:01:49.2]} 19...
dxc4 {[%clk 0:01:53.2]} 20. Nxc4 {[%clk 0:01:50.1]} 20... b5 {[%clk 0:01:52.2]}
21. Nd6 {[%clk 0:01:49.5]} 21... Bd5 {[%clk 0:01:49.1]} 22. Qb2 {[%clk
0:01:41.7]} 22... c4 {[%clk 0:01:33.9]} 23. Qb4 {[%clk 0:01:26.2]} 23... Nb8
{[%clk 0:01:11]} 24. Nxc8 {[%clk 0:00:49.2]} 24... Qxb4 {[%clk 0:01:10.1]} 25.
axb4 {[%clk 0:00:48.2]} 25... Rxc8 {[%clk 0:01:10.6]} 26. Bxb8 {[%clk
0:00:48.1]} 26... Rxb8 {[%clk 0:01:10.3]} 27. f3 {[%clk 0:00:48.2]} 27... Re8
{[%clk 0:01:08]} 28. Kf2 {[%clk 0:00:46.4]} 28... h6 {[%clk 0:01:06]} 29. Bd1
{[%clk 0:00:34.5]} 29... Nd7 {[%clk 0:01:04.6]} 30. Bc2 {[%clk 0:00:32.8]} 30...
f5 {[%clk 0:01:03.4]} 31. f4 {[%clk 0:00:33.2]} 31... Nb8 {[%clk 0:01:02.4]} 32.
g4 {[%clk 0:00:33.1]} 32... g6 {[%clk 0:01:01.5]} 33. Rg1 {[%clk 0:00:29.7]}
33... Kh7 {[%clk 0:00:50.3]} 34. gxf5 {[%clk 0:00:25.2]} 34... gxf5 {[%clk
0:00:50.3]} 35. Bd1 {[%clk 0:00:20.6]} 35... Nc6 {[%clk 0:00:48.9]} 36. Bh5
{[%clk 0:00:17.8]} 36... Re7 {[%clk 0:00:48.4]} 37. Bg6+ {[%clk 0:00:17.3]}
37... Kh8 {[%clk 0:00:47.9]} 38. Bxf5 {[%clk 0:00:17.6]} 38... Nxb4 {[%clk
0:00:47.4]} 39. Ke2 {[%clk 0:00:13.1]} 39... Nd3 {[%clk 0:00:46.2]} 40. Rcf1
{[%clk 0:00:13]} 40... c3 {[%clk 0:00:43.4]} 41. Rg6 {[%clk 0:00:13]} 41... Rf7
{[%clk 0:00:23.1]} 42. Rxh6+ {[%clk 0:00:10.4]} 42... Kg8 {[%clk 0:00:22.5]} 43.
Rg1+ {[%clk 0:00:09.4]} 43... Kf8 {[%clk 0:00:22.3]} 44. Bg6 {[%clk 0:00:09.3]}
44... Rf6 {[%clk 0:00:20.3]} 45. Rh8+ {[%clk 0:00:08.7]} 45... Ke7 {[%clk
0:00:19.6]} 46. Rh7+ {[%clk 0:00:09]} 46... Kd6 {[%clk 0:00:18.9]} 47. f5 {[%clk
0:00:09.6]} 47... c2 {[%clk 0:00:18.1]} 48. Kd2 {[%clk 0:00:10]} 48... c1=Q+
{[%clk 0:00:17.2]} 49. Rxc1 {[%clk 0:00:10.1]} 49... Nxc1 {[%clk 0:00:17.2]} 50.
Kxc1 {[%clk 0:00:11]} 50... b4 {[%clk 0:00:15.2]} 51. Ra7 {[%clk 0:00:11.1]}
51... Bc4 {[%clk 0:00:10.2]} 52. h4 {[%clk 0:00:11.2]} 52... b3 {[%clk
0:00:09.8]} 53. Kb2 {[%clk 0:00:10.7]} 53... Kd5 {[%clk 0:00:09.4]} 54. h5
{[%clk 0:00:10.9]} 54... Rf8 {[%clk 0:00:07.8]} 55. Bf7+ {[%clk 0:00:10.2]}
55... Kd6 {[%clk 0:00:05.1]} 56. Bxc4 {[%clk 0:00:10.1]} 56... Rh8 {[%clk
0:00:03.4]} 57. f6 {[%clk 0:00:09.9]} 1-0

[Event "Betsys MČR v online bleskovém šachu 2021"]
[Site "Chess.com"]
[Date "2021.04.17"]
[Round "7"]
[White "kalcs"]
[Black "Pantata007"]
[Result "0-1"]
[WhiteElo "2075"]
[BlackElo "2275"]
[TimeControl "180+1"]
[EndTime "10:12:57 PDT"]
[Termination "Uživatel Pantata007 zvítězil po vzdání soupeře"]

1. e4 {[%clk 0:02:59.3]} 1... e5 {[%clk 0:02:58.1]} 2. Nf3 {[%clk 0:02:58.8]}
2... Nc6 {[%clk 0:02:57.1]} 3. Bb5 {[%clk 0:02:58.7]} 3... a6 {[%clk 0:02:56.6]}
4. Ba4 {[%clk 0:02:58.8]} 4... Nf6 {[%clk 0:02:56.2]} 5. d3 {[%clk 0:02:58.5]}
5... Bc5 {[%clk 0:02:54.6]} 6. O-O {[%clk 0:02:57.8]} 6... d6 {[%clk 0:02:49.8]}
7. c3 {[%clk 0:02:57.6]} 7... O-O {[%clk 0:02:49.1]} 8. h3 {[%clk 0:02:57.3]}
8... h6 {[%clk 0:02:43.5]} 9. Re1 {[%clk 0:02:56.5]} 9... Ba7 {[%clk 0:02:42.1]}
10. Nbd2 {[%clk 0:02:53.3]} 10... Bd7 {[%clk 0:02:40.7]} 11. Nf1 {[%clk
0:02:49.9]} 11... Ne7 {[%clk 0:02:39.7]} 12. Bb3 {[%clk 0:02:39.6]} 12... Ng6
{[%clk 0:02:37.4]} 13. Be3 {[%clk 0:02:36.3]} 13... Bxe3 {[%clk 0:02:33.6]} 14.
Nxe3 {[%clk 0:02:35.3]} 14... Nf4 {[%clk 0:02:33.1]} 15. Nf5 {[%clk 0:02:16.5]}
15... Bxf5 {[%clk 0:02:24.6]} 16. exf5 {[%clk 0:02:15.8]} 16... Qd7 {[%clk
0:02:24.6]} 17. Nh4 {[%clk 0:02:08.6]} 17... Qc6 {[%clk 0:02:13.8]} 18. Qf3
{[%clk 0:02:02.4]} 18... Qxf3 {[%clk 0:02:12.7]} 19. Nxf3 {[%clk 0:02:01.7]}
19... Nxd3 {[%clk 0:02:12.8]} 20. Re2 {[%clk 0:02:00.1]} 20... Rfe8 {[%clk
0:02:03]} 21. Rd1 {[%clk 0:01:55.9]} 21... Nc5 {[%clk 0:01:49.8]} 22. Bc2 {[%clk
0:01:48.3]} 22... a5 {[%clk 0:01:49]} 23. a3 {[%clk 0:01:42.5]} 23... a4 {[%clk
0:01:45.1]} 24. g3 {[%clk 0:01:37.7]} 24... b5 {[%clk 0:01:29.2]} 25. Ne1 {[%clk
0:01:19.2]} 25... d5 {[%clk 0:01:17.8]} 26. Nf3 {[%clk 0:01:07.9]} 26... e4
{[%clk 0:01:04.8]} 27. Nd4 {[%clk 0:01:06.2]} 27... Rab8 {[%clk 0:01:00]} 28.
Nc6 {[%clk 0:01:03.1]} 28... Rb6 {[%clk 0:00:56.8]} 29. Nb4 {[%clk 0:01:02.9]}
29... c6 {[%clk 0:00:55.4]} 30. Kg2 {[%clk 0:00:59.2]} 30... Rc8 {[%clk
0:00:18.5]} 31. g4 {[%clk 0:00:55.3]} 31... Rb7 {[%clk 0:00:13.1]} 32. Kg3
{[%clk 0:00:55.4]} 32... Nfd7 {[%clk 0:00:12.1]} 33. h4 {[%clk 0:00:51.2]} 33...
Ne5 {[%clk 0:00:11.2]} 34. Kf4 {[%clk 0:00:42.2]} 34... Nc4 {[%clk 0:00:10.3]}
35. Bb1 {[%clk 0:00:38.6]} 35... Re7 {[%clk 0:00:06.6]} 36. g5 {[%clk
0:00:36.5]} 36... h5 {[%clk 0:00:05.7]} 37. f6 {[%clk 0:00:27.3]} 37... gxf6
{[%clk 0:00:05.3]} 38. gxf6 {[%clk 0:00:27.3]} 38... Re6 {[%clk 0:00:05.6]} 39.
Rg1+ {[%clk 0:00:24.9]} 39... Kh7 {[%clk 0:00:05.3]} 40. Rg5 {[%clk 0:00:24.6]}
40... Rxf6+ {[%clk 0:00:04.9]} 41. Kg3 {[%clk 0:00:23.5]} 41... Kh6 {[%clk
0:00:04.6]} 42. Nxd5 {[%clk 0:00:20.4]} 42... cxd5 {[%clk 0:00:04.1]} 43. Rxd5
{[%clk 0:00:20.3]} 43... Ne6 {[%clk 0:00:03.7]} 44. Bxe4 {[%clk 0:00:18.9]}
44... Rg8+ {[%clk 0:00:04]} 45. Kh2 {[%clk 0:00:17.8]} 45... Nf4 {[%clk
0:00:04.2]} 46. Re1 {[%clk 0:00:15.4]} 46... Nxd5 {[%clk 0:00:03.7]} 47. Bxd5
{[%clk 0:00:14.7]} 47... Rxf2+ {[%clk 0:00:04.1]} 48. Kh1 {[%clk 0:00:14]} 48...
Rf4 {[%clk 0:00:04.2]} 49. Re2 {[%clk 0:00:08.4]} 49... Rxh4+ {[%clk 0:00:03.9]}
50. Rh2 {[%clk 0:00:06.5]} 50... Rxh2+ {[%clk 0:00:04.1]} 51. Kxh2 {[%clk
0:00:06.7]} 51... Nxb2 {[%clk 0:00:04.5]} 52. Bxf7 {[%clk 0:00:05.8]} 52... Rf8
{[%clk 0:00:04.8]} 53. Bd5 {[%clk 0:00:05.5]} 53... Rd8 {[%clk 0:00:05]} 54. Bc6
{[%clk 0:00:05.4]} 54... Rb8 {[%clk 0:00:05.6]} 55. Kg3 {[%clk 0:00:04.4]} 55...
Nd1 {[%clk 0:00:05.9]} 0-1

[Event "Betsys MČR v online bleskovém šachu 2021"]
[Site "Chess.com"]
[Date "2021.04.17"]
[Round "7"]
[White "MartinCerveny"]
[Black "chessbeer17"]
[Result "1-0"]
[WhiteElo "2657"]
[BlackElo "2349"]
[TimeControl "180+1"]
[EndTime "10:12:58 PDT"]
[Termination "Uživatel MartinCerveny zvítězil matem"]

1. d4 {[%clk 0:03:00.9]} 1... Nf6 {[%clk 0:02:59.5]} 2. Nf3 {[%clk 0:03:00.1]}
2... b6 {[%clk 0:02:59.5]} 3. g3 {[%clk 0:02:59.4]} 3... Bb7 {[%clk 0:03:00]} 4.
Bg2 {[%clk 0:02:59.6]} 4... e6 {[%clk 0:03:00.7]} 5. O-O {[%clk 0:02:59.7]} 5...
Be7 {[%clk 0:03:01.3]} 6. c4 {[%clk 0:02:59.9]} 6... d5 {[%clk 0:03:01.6]} 7.
Ne5 {[%clk 0:02:59]} 7... O-O {[%clk 0:03:01.2]} 8. Nc3 {[%clk 0:02:57]} 8...
Nbd7 {[%clk 0:03:01]} 9. Qa4 {[%clk 0:02:54.9]} 9... c6 {[%clk 0:03:00.6]} 10.
e4 {[%clk 0:02:37.6]} 10... Nxe5 {[%clk 0:02:49.7]} 11. dxe5 {[%clk 0:02:35.6]}
11... Nxe4 {[%clk 0:02:49.6]} 12. Nxe4 {[%clk 0:02:35.6]} 12... dxe4 {[%clk
0:02:49.6]} 13. Bxe4 {[%clk 0:02:28.1]} 13... Qc7 {[%clk 0:02:47.2]} 14. Re1
{[%clk 0:02:12.2]} 14... c5 {[%clk 0:02:32.7]} 15. Qc2 {[%clk 0:02:08.4]} 15...
Bxe4 {[%clk 0:02:31.4]} 16. Qxe4 {[%clk 0:02:08.2]} 16... Rad8 {[%clk
0:02:29.6]} 17. Be3 {[%clk 0:02:07.9]} 17... Rd7 {[%clk 0:02:27.6]} 18. h4
{[%clk 0:02:03.8]} 18... h6 {[%clk 0:02:20.6]} 19. Kg2 {[%clk 0:01:51]} 19...
Rfd8 {[%clk 0:02:18]} 20. b3 {[%clk 0:01:50.9]} 20... Qb7 {[%clk 0:02:17]} 21.
Qxb7 {[%clk 0:01:48]} 21... Rxb7 {[%clk 0:02:17.9]} 22. Rad1 {[%clk 0:01:48]}
22... Rbd7 {[%clk 0:02:18]} 23. Rxd7 {[%clk 0:01:47.5]} 23... Rxd7 {[%clk
0:02:18.9]} 24. Kf3 {[%clk 0:01:47.5]} 24... g5 {[%clk 0:02:05.7]} 25. h5 {[%clk
0:01:41.1]} 25... f6 {[%clk 0:02:01.7]} 26. exf6 {[%clk 0:01:39.5]} 26... Bxf6
{[%clk 0:02:02.6]} 27. Ke4 {[%clk 0:01:39.5]} 27... Kf7 {[%clk 0:02:01.6]} 28.
f4 {[%clk 0:01:35.8]} 28... Rd8 {[%clk 0:01:46.1]} 29. fxg5 {[%clk 0:01:22.8]}
29... Bxg5 {[%clk 0:01:40.2]} 30. Bxg5 {[%clk 0:01:22.4]} 30... hxg5 {[%clk
0:01:39.7]} 31. Ke5 {[%clk 0:01:14.7]} 31... Rd2 {[%clk 0:01:36.3]} 32. h6
{[%clk 0:01:05.3]} 32... Kg6 {[%clk 0:01:29]} 33. Rh1 {[%clk 0:01:04.1]} 33...
Re2+ {[%clk 0:01:26.5]} 34. Kd6 {[%clk 0:01:03.1]} 34... Kh7 {[%clk 0:01:26.6]}
35. g4 {[%clk 0:00:55.9]} 35... Re4 {[%clk 0:01:24.3]} 36. Ke7 {[%clk
0:00:48.5]} 36... Rxg4 {[%clk 0:01:21]} 37. Kxe6 {[%clk 0:00:47.4]} 37... Rf4
{[%clk 0:01:20.5]} 38. Ke5 {[%clk 0:00:46.2]} 38... Rf2 {[%clk 0:01:20.2]} 39.
a3 {[%clk 0:00:38.4]} 39... Rf3 {[%clk 0:01:10.2]} 40. b4 {[%clk 0:00:37.4]}
40... cxb4 {[%clk 0:01:04.4]} 41. axb4 {[%clk 0:00:38.3]} 41... g4 {[%clk
0:01:04.5]} 42. c5 {[%clk 0:00:37.6]} 42... bxc5 {[%clk 0:01:00.7]} 43. bxc5
{[%clk 0:00:38.5]} 43... g3 {[%clk 0:01:01.1]} 44. c6 {[%clk 0:00:30.7]} 44...
g2 {[%clk 0:00:58.6]} 45. Rg1 {[%clk 0:00:29.6]} 45... Rf2 {[%clk 0:00:46.9]}
46. c7 {[%clk 0:00:25.7]} 46... Rc2 {[%clk 0:00:41.5]} 47. Kd6 {[%clk
0:00:25.7]} 47... Kxh6 {[%clk 0:00:40.4]} 48. Rxg2 {[%clk 0:00:24.7]} 48... Rxg2
{[%clk 0:00:33.9]} 49. c8=Q {[%clk 0:00:23.8]} 49... Rg6+ {[%clk 0:00:33.8]} 50.
Ke5 {[%clk 0:00:23.6]} 50... a6 {[%clk 0:00:32.3]} 51. Kf5 {[%clk 0:00:23.4]}
51... Rg5+ {[%clk 0:00:31.5]} 52. Kf4 {[%clk 0:00:23.3]} 52... Rg7 {[%clk
0:00:26.5]} 53. Qxa6+ {[%clk 0:00:22.2]} 53... Rg6 {[%clk 0:00:26]} 54. Qc8
{[%clk 0:00:22.2]} 54... Kg7 {[%clk 0:00:26.1]} 55. Kf5 {[%clk 0:00:22.3]} 55...
Rf6+ {[%clk 0:00:25.9]} 56. Ke5 {[%clk 0:00:22.4]} 56... Rf7 {[%clk 0:00:25.8]}
57. Qe8 {[%clk 0:00:22]} 57... Rf8 {[%clk 0:00:20.6]} 58. Qe7+ {[%clk 0:00:21]}
58... Rf7 {[%clk 0:00:20.7]} 59. Qg5+ {[%clk 0:00:20.8]} 59... Kh8 {[%clk
0:00:19.6]} 60. Qh5+ {[%clk 0:00:19.4]} 60... Kg7 {[%clk 0:00:19.5]} 61. Ke6
{[%clk 0:00:19.4]} 61... Rf6+ {[%clk 0:00:13.6]} 62. Ke7 {[%clk 0:00:19.5]}
62... Rg6 {[%clk 0:00:13.5]} 63. Qe5+ {[%clk 0:00:18.9]} 63... Kh7 {[%clk
0:00:13.4]} 64. Kf7 {[%clk 0:00:18.6]} 64... Rg4 {[%clk 0:00:05.8]} 65. Qh5#
{[%clk 0:00:18.1]} 1-0

[Event "Betsys MČR v online bleskovém šachu 2021"]
[Site "Chess.com"]
[Date "2021.04.17"]
[Round "7"]
[White "CzechMerlin"]
[Black "MichalTrhal"]
[Result "0-1"]
[WhiteElo "1663"]
[BlackElo "1927"]
[TimeControl "180+1"]
[EndTime "10:13:00 PDT"]
[Termination "Uživatel MichalTrhal zvítězil po vzdání soupeře"]

1. d4 {[%clk 0:03:00.9]} 1... Nf6 {[%clk 0:00:33.7]} 2. c4 {[%clk 0:02:59.9]}
2... c5 {[%clk 0:00:31.3]} 3. d5 {[%clk 0:02:58.9]} 3... d6 {[%clk 0:00:31.4]}
4. Nc3 {[%clk 0:02:55.4]} 4... g6 {[%clk 0:00:31.5]} 5. e4 {[%clk 0:02:54.8]}
5... Bg7 {[%clk 0:00:32]} 6. Bg5 {[%clk 0:02:55.2]} 6... O-O {[%clk 0:00:32.3]}
7. Qd2 {[%clk 0:02:55.5]} 7... Nbd7 {[%clk 0:00:32.4]} 8. Bh6 {[%clk 0:02:55.9]}
8... a6 {[%clk 0:00:32.8]} 9. Bxg7 {[%clk 0:02:56.1]} 9... Kxg7 {[%clk 0:00:33]}
10. Be2 {[%clk 0:02:56.6]} 10... Rb8 {[%clk 0:00:30.8]} 11. h4 {[%clk
0:02:56.8]} 11... h5 {[%clk 0:00:30.3]} 12. a4 {[%clk 0:02:56.3]} 12... Ne5
{[%clk 0:00:29.4]} 13. f3 {[%clk 0:02:55.6]} 13... Bd7 {[%clk 0:00:28.5]} 14.
Nh3 {[%clk 0:02:48.6]} 14... Qc7 {[%clk 0:00:28.4]} 15. Nf2 {[%clk 0:02:48.1]}
15... b5 {[%clk 0:00:27.9]} 16. axb5 {[%clk 0:02:46.9]} 16... axb5 {[%clk
0:00:28.1]} 17. cxb5 {[%clk 0:02:42.9]} 17... c4 {[%clk 0:00:28.2]} 18. g4
{[%clk 0:02:31.3]} 18... hxg4 {[%clk 0:00:28.3]} 19. h5 {[%clk 0:02:25.9]} 19...
g3 {[%clk 0:00:27.9]} 20. hxg6 {[%clk 0:02:25.4]} 20... gxf2+ {[%clk 0:00:27.1]}
21. Kxf2 {[%clk 0:02:25.8]} 21... Rh8 {[%clk 0:00:26.7]} 22. gxf7 {[%clk
0:02:16.5]} 22... Qc5+ {[%clk 0:00:26.7]} 23. Kg2 {[%clk 0:02:10]} 23... Kxf7
{[%clk 0:00:26.6]} 24. Rag1 {[%clk 0:01:28.3]} 24... Rbg8+ {[%clk 0:00:26.3]}
25. Kf1 {[%clk 0:01:28.1]} 25... Rxh1 {[%clk 0:00:26.2]} 26. Rxh1 {[%clk
0:01:26.6]} 26... Nd3 {[%clk 0:00:24.9]} 27. Bxd3 {[%clk 0:01:16.8]} 27... cxd3
{[%clk 0:00:25.2]} 28. Qxd3 {[%clk 0:00:56.2]} 28... Rg7 {[%clk 0:00:25.3]} 29.
Ne2 {[%clk 0:00:51.6]} 29... Qb4 {[%clk 0:00:24.5]} 30. b3 {[%clk 0:00:34.5]}
30... Bxb5 {[%clk 0:00:23.5]} 31. Qe3 {[%clk 0:00:31.6]} 31... Bxe2+ {[%clk
0:00:21.6]} 32. Kxe2 {[%clk 0:00:29.2]} 32... Nd7 {[%clk 0:00:21.3]} 33. Qf4+
{[%clk 0:00:25.2]} 33... Kg8 {[%clk 0:00:21.2]} 34. Qh4 {[%clk 0:00:23.5]} 34...
Qb5+ {[%clk 0:00:21]} 35. Kf2 {[%clk 0:00:22.9]} 35... Qxb3 {[%clk 0:00:20.3]}
36. Qh8+ {[%clk 0:00:22]} 36... Kf7 {[%clk 0:00:20.7]} 37. Rh4 {[%clk
0:00:20.9]} 37... Qb2+ {[%clk 0:00:20.7]} 38. Ke3 {[%clk 0:00:20.4]} 38... Qc3+
{[%clk 0:00:20]} 39. Kf2 {[%clk 0:00:19.9]} 39... Qd2+ {[%clk 0:00:19.9]} 40.
Kf1 {[%clk 0:00:19]} 40... Qg2+ {[%clk 0:00:19.8]} 41. Ke1 {[%clk 0:00:19.2]}
41... Qg1+ {[%clk 0:00:19.8]} 42. Ke2 {[%clk 0:00:18.9]} 42... Rg2+ {[%clk
0:00:20.2]} 43. Kd3 {[%clk 0:00:18.6]} 43... Qb1+ {[%clk 0:00:18.8]} 44. Ke3
{[%clk 0:00:17.9]} 44... Qc1+ {[%clk 0:00:18.9]} 45. Kd3 {[%clk 0:00:17.6]}
45... Qd2+ {[%clk 0:00:18.2]} 46. Kc4 {[%clk 0:00:17.3]} 46... Qc2+ {[%clk
0:00:16.1]} 47. Kb4 {[%clk 0:00:16.8]} 47... Qb2+ {[%clk 0:00:15.3]} 48. Qxb2
{[%clk 0:00:15.5]} 48... Rxb2+ {[%clk 0:00:14.3]} 49. Kc3 {[%clk 0:00:16]} 49...
Rf2 {[%clk 0:00:14.2]} 50. f4 {[%clk 0:00:15.4]} 50... Nf6 {[%clk 0:00:12.9]}
51. Kd4 {[%clk 0:00:15.3]} 51... Rd2+ {[%clk 0:00:12.8]} 52. Ke3 {[%clk
0:00:14.7]} 52... Rd1 {[%clk 0:00:12.8]} 53. e5 {[%clk 0:00:14.8]} 53... Nxd5+
{[%clk 0:00:11.3]} 54. Ke4 {[%clk 0:00:12.4]} 54... Nc3+ {[%clk 0:00:09.6]} 55.
Kf5 {[%clk 0:00:11.9]} 55... dxe5 {[%clk 0:00:09.5]} 56. fxe5 {[%clk 0:00:10.9]}
56... e6+ {[%clk 0:00:09.5]} 57. Kf4 {[%clk 0:00:09.3]} 57... Rd4+ {[%clk
0:00:09]} 58. Kg3 {[%clk 0:00:08.6]} 58... Rxh4 {[%clk 0:00:09.9]} 59. Kxh4
{[%clk 0:00:09.4]} 59... Kg6 {[%clk 0:00:10]} 60. Kg4 {[%clk 0:00:09.6]} 60...
Nb5 {[%clk 0:00:10.1]} 61. Kf4 {[%clk 0:00:09.6]} 61... Nc7 {[%clk 0:00:11]} 62.
Ke4 {[%clk 0:00:09.7]} 62... Ne8 {[%clk 0:00:10.8]} 0-1